fUST/lending_fUST_20251003
["ID","MTS","AMOUNT","RATE_DAILY","PERIOD"]
[388906948,1759487447423,-1601.51520513,0.0002206,2]
[388906949,1759487447431,-1200.0,0.00022067,2]
[388906950,1759487447440,-585.107932,0.00022121,7]
[388906951,1759487447449,-585.107932,0.00022121,7]
[388906952,1759487447458,-585.107932,0.00022121,7]
[388906953,1759487447467,-585.107932,0.00022121,7]
[388906954,1759487447475,-150.0,0.00022161,2]
[388906955,1759487447484,-889.0,0.00022192,2]
[388906956,1759487447493,-3397.79929035,0.00022259,2]
[388906957,1759487447503,-1235.0,0.00022267,2]
[388906958,1759487447512,-560.0,0.00022287,2]
[388906959,1759487447521,-12500.0,0.00022324,7]
[388906961,1759487447530,-12500.0,0.00022333,7]
[388906963,1759487447539,-864.0,0.00022339,20]
[388906965,1759487447549,-3500.0,0.00022362,2]
[388906967,1759487447558,-3500.0,0.00022362,2]
[388906969,1759487447571,-3500.0,0.00022362,2]
[388906971,1759487447580,-1000.0,0.00022389,2]
[388906973,1759487447589,-1000.0,0.00022398,2]
[388906975,1759487447599,-1000.0,0.00022398,2]
[388906977,1759487447607,-1000.0,0.00022398,2]
[388906979,1759487447617,-1001.00682866,0.00022398,2]
[388906981,1759487447627,-1000.0,0.00022398,2]
[388906983,1759487447636,-1000.0,0.00022398,2]
[388906985,1759487447645,-1000.0,0.00022398,2]
[388906987,1759487447654,-1000.0,0.00022398,2]
[388906989,1759487447663,-1000.0,0.00022398,2]
[388906991,1759487447672,-1000.0,0.00022398,2]
[388906993,1759487447682,-1000.0,0.00022398,2]
[388906995,1759487447690,-1000.0,0.00022398,2]
[388906997,1759487447699,-272544.15332386,0.0002244,2]
[388906999,1759487447717,-507.33138492,0.0002244,2]
[388907001,1759487447728,-5312.89199758,0.0002244,2]
[388907004,1759487447738,-510.33522986,0.0002244,2]
[388907021,1759487447911,-400.48,0.0001999,3]
[388907023,1759487447921,-800.96,0.0002136,3]
[388907025,1759487447931,-57024.36070902,0.0002244,2]
[388907027,1759487447940,-500.0,0.0002245,2]
[388907029,1759487447949,-500.0,0.0002245,2]
[388907031,1759487447959,-829.78376094,0.00022452,2]
[388907033,1759487447968,-889.0,0.00022466,2]
[388907035,1759487447977,-150.0,0.00022466,2]
[388907037,1759487447986,-1270.0,0.00022467,2]
[388907039,1759487447995,-1000.0,0.00022484,2]
[388907041,1759487448004,-1000.0,0.00022484,2]
[388907042,1759487448013,-1000.0,0.00022484,2]
[388907044,1759487448022,-3500.0,0.00022491,2]
[388907046,1759487448031,-2325.40705593,0.00022492,2]
[388907048,1759487448040,-1082.4,0.000225,2]
[388907050,1759487448051,-500.0,0.00022506,2]
[388907052,1759487448060,-500.0,0.00022506,2]
[388907054,1759487448069,-500.3459859,0.00022517,2]
[388907056,1759487448078,-500.0,0.00022517,2]
[388907058,1759487448087,-500.0,0.00022517,2]
[388907060,1759487448096,-500.0,0.00022517,2]
[388907062,1759487448104,-500.0,0.00022517,2]
[388907064,1759487448114,-500.0,0.00022517,2]
[388907066,1759487448123,-500.0,0.00022517,2]
[388907068,1759487448133,-1006.48729314,0.00022521,2]
[388907069,1759487448143,-1000.0,0.00022521,2]
[388907071,1759487448152,-1000.0,0.00022521,2]
[388907073,1759487448161,-1000.0,0.00022521,2]
[388907075,1759487448170,-1000.0,0.00022521,2]
[388907077,1759487448180,-1000.0,0.00022521,2]
[388907078,1759487448189,-681.11358681,0.00022521,2]
[388907080,1759487448202,-1000.0,0.00022521,2]
[388907082,1759487448213,-1000.0,0.00022521,2]
[388907084,1759487448223,-1000.0,0.00022521,2]
[388907086,1759487448232,-1000.0,0.00022521,2]
[388907088,1759487448243,-297.38658296,0.00022521,2]
[388907090,1759487448253,-1000.0,0.00022521,2]
[388907092,1759487448262,-1000.0,0.00022521,2]
[388907094,1759487448273,-500.96597895,0.00022521,2]
[388907096,1759487448282,-1000.0,0.00022521,2]
[388907098,1759487448291,-1000.0,0.00022521,2]
[388907100,1759487448300,-1000.0,0.00022521,2]
[388907102,1759487448310,-1000.0,0.00022521,2]
[388907104,1759487448319,-1000.0,0.00022521,2]
[388907106,1759487448328,-1000.0,0.00022521,2]
[388907108,1759487448337,-1000.0,0.00022521,2]
[388907110,1759487448347,-1000.0,0.00022523,2]
[388907112,1759487448356,-1000.0,0.00022523,2]
[388907113,1759487448366,-1305.0,0.00022667,2]
[388907115,1759487448375,-889.0,0.0002274,2]
[388907117,1759487448384,-150.0,0.0002277,2]
[388907119,1759487448395,-1368.062692,0.00022783,2]
[388907121,1759487448404,-660.0,0.00022835,2]
[388907123,1759487448414,-327.80539193,0.00022867,7]
[388907125,1759487448423,-150.0,0.00022867,7]
[388907127,1759487448432,-1340.0,0.00022867,2]
[388907129,1759487448442,-709.04792008,0.00022871,5]
[388907131,1759487448451,-500.0,0.000229,2]
[388907133,1759487448460,-4000.0,0.0002291,2]
[388907135,1759487448469,-2937.47414354,0.0002291,2]
[388907329,1759487486297,486.58026127,0.00018001,2]
[388907330,1759487486319,10000.01,0.00018001,2]
[388907331,1759487486341,10000.01,0.00018001,2]
[388907332,1759487486363,10000.01,0.00018001,2]
[388907333,1759487486386,10000.01,0.00018001,2]
[388907334,1759487486408,10000.01,0.00018001,2]
[388907335,1759487486430,10000.01,0.00018001,2]
[388907336,1759487486451,10000.01,0.00018001,2]
[388907337,1759487486473,1806.76776926,0.00018001,2]
[388907338,1759487486495,10000.01,0.00018001,2]
[388907339,1759487486517,10000.01,0.00018001,2]
[388907340,1759487486548,141830.26312336,0.00018001,2]
[388907341,1759487486578,135876.29884611,0.00018001,2]
[388907342,1759487512971,1140.0,0.00018033,2]
[388907343,1759487529446,964.3,0.0002876,120]
[388907345,1759487736215,223.0,0.00020619,120]
[388907346,1759487737738,223.0,0.0002165,120]
[388907347,1759487739050,223.0,0.00022733,120]
[388907348,1759487740356,223.0,0.00023869,120]
[388907350,1759487746662,223.0,0.00025063,120]
[388907351,1759487747945,223.0,0.00026316,120]
[388907352,1759487749214,223.0,0.00027632,120]
[388907353,1759487846054,179.8402904,0.00028767,120]
[388907354,1759487880207,177.389956,0.00017697,2]
[388907355,1759487880417,177.389956,0.00017697,120]
[388907361,1759488030734,167.0,0.00022931,120]
[388907365,1759488032313,167.0,0.00024078,120]
[388907366,1759488033838,167.0,0.00025282,120]
[388907367,1759488035154,167.0,0.00026546,120]
[388907368,1759488122179,210.3083166,0.0001746,2]
[388907369,1759488264117,157.840846,0.0001746,2]
[388907373,1759488401236,3487.7085292,0.00017459,2]
[388907374,1759488497372,4826.7623522,0.00018033,2]
[388907375,1759488497396,173.2376478,0.00018033,2]
[388907376,1759488520302,5000.0,0.00018033,2]
[388907409,1759488632878,-500.0,0.00018099,2]
[388907410,1759488632888,-535.0,0.00018299,2]
[388907411,1759488632898,-488.93603178,0.00018399,2]
[388907412,1759488632907,-473.73037724,0.00018456,2]
[388907413,1759488632919,-726.26962276,0.00018456,2]
[388907415,1759488632929,-1200.0,0.00018457,2]
[388907417,1759488632939,-300.0,0.00018457,2]
[388907419,1759488632948,-300.0,0.00018457,2]
[388907421,1759488632957,-192.0,0.00018457,2]
[388907422,1759488632972,-300.0,0.00018457,2]
[388907423,1759488632982,-300.0,0.00018457,2]
[388907424,1759488632991,-300.0,0.00018461,2]
[388907425,1759488633000,-300.0,0.00018461,2]
[388907426,1759488633011,-300.0,0.00018461,2]
[388907427,1759488633022,-300.0,0.00018461,2]
[388907428,1759488633031,-300.0,0.00018461,2]
[388907429,1759488633043,-300.0,0.00018461,2]
[388907430,1759488633053,-300.0,0.00018461,2]
[388907431,1759488633064,-300.0,0.00018461,2]
[388907432,1759488633074,-300.0,0.00018461,2]
[388907433,1759488633084,-300.0,0.00018461,2]
[388907435,1759488633094,-300.0,0.00018461,2]
[388907438,1759488633104,-300.0,0.00018461,2]
[388907441,1759488633114,-300.0,0.00018461,2]
[388907443,1759488633124,-300.0,0.00018461,2]
[388907445,1759488633134,-300.0,0.00018461,2]
[388907447,1759488633143,-600.0,0.00018461,2]
[388907449,1759488633153,-222.08,0.00018461,2]
[388907450,1759488633162,-22005.37894108,0.00018461,2]
[388907452,1759488633173,-570.0,0.00018499,2]
[388907453,1759488633183,-605.0,0.00018699,2]
[388907454,1759488633192,-428.89858044,0.00018705,2]
[388907455,1759488633203,-500.0,0.00018705,2]
[388907456,1759488633213,-500.0,0.00018705,2]
[388907457,1759488633223,-604.71059077,0.00018705,2]
[388907458,1759488633233,-500.0,0.00018705,2]
[388907459,1759488633243,-500.0,0.00018705,2]
[388907460,1759488633253,-500.0,0.00018705,2]
[388907461,1759488633263,-500.0,0.00018705,2]
[388907462,1759488633273,-500.0,0.00018705,2]
[388907463,1759488633283,-500.0,0.00018705,2]
[388907464,1759488633292,-500.0,0.00018705,2]
[388907465,1759488633302,-500.0,0.00018705,2]
[388907466,1759488633312,-500.0,0.00018705,2]
[388907467,1759488633322,-500.0,0.00018705,2]
[388907468,1759488633332,-500.0,0.00018705,2]
[388907469,1759488633342,-500.0,0.00018705,2]
[388907470,1759488633352,-500.0,0.00018705,2]
[388907471,1759488633361,-500.0,0.00018705,2]
[388907472,1759488633371,-980.0,0.00018762,2]
[388907473,1759488633380,-410.0,0.00018762,2]
[388907474,1759488633389,-630.0,0.00018762,2]
[388907475,1759488633399,-162.0,0.00018826,2]
[388907476,1759488633408,-162.0,0.00018826,2]
[388907477,1759488633418,-162.0,0.00018826,2]
[388907478,1759488633428,-163.04405493,0.00018826,2]
[388907479,1759488633438,-157.85468907,0.00018826,2]
[388907480,1759488633447,-500.0,0.0001883,2]
[388907481,1759488633456,-349.56953824,0.0001886,2]
[388907482,1759488633467,-640.0,0.00018899,2]
[388907483,1759488633477,-500.0,0.00019018,2]
[388907484,1759488633486,-503.21058416,0.0001907,2]
[388907485,1759488633496,-500.0,0.0001907,2]
[388907486,1759488633506,-675.0,0.00019099,2]
[388907487,1759488633516,-500.0,0.00019155,2]
[388907488,1759488633525,-710.0,0.00019299,2]
[388907489,1759488633536,-1000.0,0.00019378,2]
[388907490,1759488633546,-150.0,0.00019444,2]
[388907491,1759488633556,-164.0,0.00019444,2]
[388907492,1759488633565,-745.0,0.00019499,2]
[388907493,1759488633575,-1000.0,0.00019618,2]
[388907494,1759488633585,-780.0,0.00019699,2]
[388907495,1759488633595,-641.82174715,0.00019702,2]
[388907496,1759488633605,-250.0,0.00019874,2]
[388907497,1759488633615,-815.0,0.00019899,2]
[388907498,1759488633624,-1500.0,0.00019926,2]
[388907499,1759488633634,-309.83,0.00019999,2]
[388907500,1759488633645,-179.83814567,0.0002,2]
[388907501,1759488633655,-850.0,0.00020099,2]
[388907502,1759488633664,-309.83,0.00020099,2]
[388907503,1759488633673,-1200.0,0.00020129,2]
[388907504,1759488633683,-300.0,0.00020129,2]
[388907505,1759488633693,-300.0,0.00020129,2]
[388907506,1759488633702,-420.0,0.00020129,2]
[388907507,1759488633712,-967.49593167,0.00020166,2]
[388907508,1759488633722,-1680.0,0.00020227,2]
[388907509,1759488633732,-885.0,0.00020299,2]
[388907510,1759488633741,-720.0,0.00020307,2]
[388907511,1759488633752,-488.93603175,0.00020454,2]
[388907512,1759488633762,-2000.0,0.00020474,2]
[388907513,1759488633772,-920.0,0.00020499,2]
[388907514,1759488633782,-955.0,0.00020699,2]
[388907515,1759488633792,-293.47406221,0.00020824,2]
[388907516,1759488633802,-234.04758945,0.00020824,2]
[388907517,1759488633811,-160.0,0.00020824,2]
[388907518,1759488633821,-160.0,0.00020831,2]
[388907519,1759488633831,-160.0,0.00020831,2]
[388907520,1759488633841,-160.0,0.00020831,2]
[388907521,1759488633850,-157.840846,0.00020884,2]
[388907522,1759488633860,-990.0,0.00020899,2]
[388907523,1759488633869,-2500.0,0.00021022,2]
[388907524,1759488633879,-1025.0,0.00021099,2]
[388907525,1759488633889,-168.267,0.00021248,2]
[388907526,1759488633898,-1060.0,0.00021299,2]
[388907527,1759488633908,-238.44774434,0.00021313,2]
[388907528,1759488633918,-1095.0,0.00021499,2]
[388907529,1759488633929,-331.57563776,0.0002157,2]
[388907530,1759488633939,-1020.56844724,0.00021699,2]
[388907531,1759488633948,-293.47406221,0.00021742,10]
[388907532,1759488633959,-979.0,0.00021762,2]
[388907533,1759488633972,-410.0,0.00021762,2]
[388907534,1759488633982,-630.0,0.00021762,2]
[388907535,1759488633992,-183.16808262,0.00021917,2]
[388907536,1759488634001,-312.89575746,0.00021917,2]
[388907537,1759488634012,-152.0,0.00021918,2]
[388907538,1759488634021,-152.0,0.00021918,2]
[388907539,1759488634031,-152.0,0.00021918,2]
[388907540,1759488634040,-152.0,0.00021918,2]
[388907541,1759488634053,-152.0,0.00021918,2]
[388907542,1759488634062,-152.0,0.00021918,2]
[388907543,1759488634071,-152.0,0.00021918,2]
[388907544,1759488634081,-152.0,0.00021918,2]
[388907545,1759488634091,-152.0,0.00021918,2]
[388907546,1759488634101,-152.0,0.00021918,2]
[388907547,1759488634111,-152.0,0.00021918,2]
[388907548,1759488634120,-152.0,0.00021918,2]
[388907549,1759488634129,-152.0,0.00021918,2]
[388907550,1759488634139,-152.0,0.00021918,2]
[388907551,1759488634148,-152.0,0.00021918,2]
[388907552,1759488634158,-152.0,0.00021918,2]
[388907553,1759488634167,-152.0,0.00021918,2]
[388907554,1759488634176,-152.0,0.00021918,2]
[388907555,1759488634185,-152.0,0.00021918,2]
[388907556,1759488634195,-152.0,0.00021918,2]
[388907557,1759488634205,-152.0,0.00021918,2]
[388907558,1759488634214,-152.0,0.00021918,2]
[388907559,1759488634224,-152.0,0.00021918,2]
[388907560,1759488634233,-152.0,0.00021918,2]
[388907561,1759488634242,-152.0,0.00021918,2]
[388907562,1759488634252,-152.0,0.00021918,2]
[388907563,1759488634261,-152.0,0.00021918,2]
[388907564,1759488634271,-152.0,0.00021918,2]
[388907565,1759488634280,-152.0,0.00021918,2]
[388907566,1759488634290,-152.0,0.00021918,2]
[388907567,1759488634300,-152.0,0.00021918,2]
[388907568,1759488634309,-152.0,0.00021918,2]
[388907569,1759488634319,-152.0,0.00021918,2]
[388907570,1759488634328,-152.0,0.00021918,2]
[388907571,1759488634338,-152.0,0.00021918,2]
[388907572,1759488634347,-152.0,0.00021918,2]
[388907573,1759488634357,-152.0,0.00021918,2]
[388907574,1759488634366,-152.0,0.00021918,2]
[388907575,1759488634377,-152.0,0.00021918,2]
[388907576,1759488634386,-152.0,0.00021918,2]
[388907577,1759488634396,-152.0,0.00021918,2]
[388907578,1759488634405,-152.0,0.00021918,2]
[388907579,1759488634416,-152.0,0.00021918,2]
[388907580,1759488634426,-152.0,0.00021918,2]
[388907581,1759488634436,-152.0,0.00021918,2]
[388907582,1759488634445,-152.0,0.00021918,2]
[388907583,1759488634454,-153.52860043,0.00021918,2]
[388907584,1759488634464,-152.0,0.00021918,2]
[388907585,1759488634473,-587.0,0.00021953,2]
[388907586,1759488634483,-500.0,0.00022095,8]
[388907587,1759488634492,-160.0,0.00022141,2]
[388907588,1759488634501,-2351.0,0.00022167,2]
[388907589,1759488634511,-170.77057565,0.00022253,2]
[388907590,1759488634521,-211.35,0.00022318,3]
[388907591,1759488634530,-422.69,0.00022328,3]
[388907592,1759488634540,-500.0,0.00022328,8]
[388907593,1759488634550,-864.0,0.00022338,20]
[388907594,1759488634559,-16833.22,0.00022343,10]
[388907595,1759488634568,-12500.0,0.00022353,7]
[388907596,1759488634577,-12500.0,0.00022362,7]
[388907597,1759488634587,-160.0,0.00022362,7]
[388907598,1759488634597,-293.47406221,0.00022362,7]
[388907599,1759488634607,-2457.56721481,0.00022362,7]
[388907629,1759488640508,-500.0,0.00018702,2]
[388907631,1759488640518,-282.47334361,0.00018702,2]
[388907633,1759488640527,-500.0,0.00018702,2]
[388907634,1759488640537,-500.0,0.00018702,2]
[388907635,1759488640546,-419.02011031,0.00018702,2]
[388907636,1759488640555,-169.42745143,0.00018702,2]
[388907637,1759488640564,-500.0,0.00018702,2]
[388907638,1759488640574,-500.0,0.00018702,2]
[388907639,1759488640583,-500.0,0.00018702,2]
[388907640,1759488640592,-500.0,0.00018702,2]
[388907641,1759488640602,-409.48211079,0.00018702,2]
[388907642,1759488640612,-544.18556849,0.00018702,2]
[388907643,1759488640621,-500.0,0.00018705,2]
[388907644,1759488640630,-293.47406221,0.00022343,10]
[388907645,1759488640640,-3882.05767316,0.00022362,7]
[388907685,1759488643660,-160.0,0.00020831,2]
[388907687,1759488643671,-6011.08087782,0.00022362,7]
[388907689,1759488643680,-500.0,0.00022413,2]
[388907691,1759488643689,-500.0,0.00022413,2]
[388907693,1759488643698,-500.0,0.00022413,2]
[388907695,1759488643708,-488.93603175,0.0002251,2]
[388907697,1759488643717,-500.0,0.00022565,2]
[388907699,1759488643726,-500.0,0.00022565,2]
[388907701,1759488643736,-500.0,0.00022565,2]
[388907703,1759488643745,-3118.1437646,0.0002261,2]
[388907705,1759488643753,-260.0,0.00022689,2]
[388907707,1759488643762,-500.0,0.0002273,2]
[388907709,1759488643771,-500.0,0.0002273,2]
[388907711,1759488643780,-500.0,0.0002273,2]
[388907713,1759488643789,-500.0,0.0002273,2]
[388907715,1759488643798,-500.0,0.0002273,2]
[388907717,1759488643807,-500.0,0.0002273,2]
[388907719,1759488643816,-500.0,0.0002273,2]
[388907721,1759488643826,-500.0,0.0002273,2]
[388907724,1759488643837,-500.0,0.0002273,2]
[388907726,1759488643847,-500.0,0.0002274,2]
[388907753,1759488644026,-301.68353822,0.0002275,2]
[388907756,1759488644045,-500.0,0.0002275,2]
[388907758,1759488644057,-500.0,0.0002275,2]
[388907760,1759488644067,-500.0,0.00022787,2]
[388907762,1759488644076,-500.0,0.00022787,2]
[388907764,1759488644086,-500.0,0.00022787,2]
[388907766,1759488644095,-500.0,0.00022787,2]
[388907768,1759488644105,-500.0,0.00022787,2]
[388907770,1759488644114,-501.07151365,0.00022787,2]
[388907772,1759488644123,-500.0,0.00022787,2]
[388907774,1759488644133,-500.0,0.00022787,2]
[388907776,1759488644143,-500.0,0.00022787,2]
[388907778,1759488644153,-1264.84367216,0.000228,2]
[388907780,1759488644163,-170.77057561,0.00022827,2]
[388907782,1759488644173,-501.67312526,0.0002284,2]
[388907784,1759488644182,-504.43477233,0.00022884,2]
[388907787,1759488644192,-500.0,0.00022884,2]
[388907789,1759488644202,-24845.23441344,0.000229,2]
[388907791,1759488644211,-1000.0,0.00022961,2]
[388907793,1759488644220,-1000.0,0.00022961,2]
[388907795,1759488644230,-275.4706958,0.00022961,2]
[388907797,1759488644240,-500.0,0.00022965,2]
[388907799,1759488644250,-500.0,0.00022965,2]
[388907801,1759488644259,-500.0,0.00022965,2]
[388907803,1759488644268,-500.0,0.00022965,2]
[388907804,1759488644278,-500.0,0.00022965,2]
[388907807,1759488644287,-500.0,0.00022965,2]
[388907809,1759488644296,-500.0,0.00022965,2]
[388907811,1759488644306,-479.58726516,0.00022965,2]
[388907813,1759488644315,-500.0,0.00022965,2]
[388907815,1759488644324,-160.0,0.00023,3]
[388907817,1759488644334,-238.0,0.00023,2]
[388907819,1759488644343,-2000.03,0.00023,7]
[388907821,1759488644352,-610.44,0.00023,3]
[388907823,1759488644361,-4931.14,0.00023,2]
[388907825,1759488644371,-1041.66666667,0.00023,2]
[388907827,1759488644380,-160.0,0.00023,2]
[388907829,1759488644389,-160.0,0.00023,2]
[388907831,1759488644398,-500.0,0.00023014,2]
[388907833,1759488644408,-500.0,0.00023024,2]
[388907834,1759488644417,-14027.68,0.0002304,10]
[388907836,1759488644426,-46363.79861307,0.0002305,2]
[388907838,1759488644436,-150.0,0.00023075,2]
[388907840,1759488644445,-1000.0,0.00023113,2]
[388907842,1759488644454,-532.63641154,0.00023113,2]
[388907844,1759488644464,-1000.0,0.00023113,2]
[388907846,1759488644473,-674.73541313,0.00023198,2]
[388907848,1759488644483,-360.0,0.00023237,2]
[388907850,1759488644492,-1000.0,0.00023278,2]
[388907852,1759488644502,-1000.0,0.00023278,2]
[388907854,1759488644511,-1000.0,0.00023278,2]
[388907856,1759488644520,-1000.0,0.00023278,2]
[388907858,1759488644530,-1000.0,0.00023278,2]
[388907860,1759488644539,-1000.0,0.00023278,2]
[388907862,1759488644548,-1000.0,0.00023278,2]
[388907864,1759488644558,-1000.0,0.00023278,2]
[388907866,1759488644567,-1000.0,0.00023278,2]
[388907868,1759488644576,-500.0,0.00023287,2]
[388907870,1759488644586,-500.0,0.00023288,2]
[388907872,1759488644595,-1000.0,0.00023298,2]
[388907874,1759488644605,-1000.0,0.00023298,2]
[388907876,1759488644614,-1000.0,0.00023335,2]
[388907879,1759488644624,-1095.22826206,0.00023335,2]
[388907880,1759488644634,-1000.0,0.00023335,2]
[388907883,1759488644649,-1004.63690299,0.00023335,2]
[388907885,1759488644659,-1000.0,0.00023335,2]
[388907887,1759488644669,-1000.0,0.00023335,2]
[388907889,1759488644677,-1000.0,0.00023335,2]
[388907891,1759488644687,-305.58755716,0.00023335,2]
[388907893,1759488644696,-150.0,0.00023379,2]
[388907895,1759488644705,-170.77057561,0.00023402,2]
[388907897,1759488644715,-313.26724776,0.00023432,2]
[388907900,1759488644734,-500.0,0.00023463,2]
[388907902,1759488644746,-192.85289187,0.00023463,2]
[388907904,1759488644757,-652.0,0.000235,2]
[388907906,1759488644769,-164.47794808,0.00023507,2]
[388907909,1759488644781,-1566.31853872,0.00023509,2]
[388907911,1759488644791,-1500.0,0.00023509,2]
[388907913,1759488644802,-300.95,0.0002351,2]
[388907915,1759488644812,-1015.93580635,0.00023513,2]
[388907917,1759488644823,-1000.0,0.00023513,2]
[388907919,1759488644832,-1000.0,0.00023513,2]
[388907921,1759488644843,-1000.0,0.00023513,2]
[388907923,1759488644853,-1000.0,0.00023513,2]
[388907925,1759488644863,-1000.0,0.00023513,2]
[388907927,1759488644873,-1000.0,0.00023513,2]
[388907929,1759488644883,-584.28012372,0.00023513,2]
[388907931,1759488644893,-500.0,0.00023562,2]
[388907933,1759488644903,-500.0,0.00023603,2]
[388907935,1759488644913,-500.0,0.00023603,2]
[388907937,1759488644923,-500.0,0.00023613,2]
[388907940,1759488644934,-1062.38324589,0.00023655,2]
[388907942,1759488644944,-1500.0,0.00023661,2]
[388907944,1759488644954,-1500.0,0.00023661,2]
[388907946,1759488644967,-150.0,0.00023683,2]
[388907948,1759488644978,-460.0,0.00023785,2]
[388907950,1759488644988,-943.45329662,0.00023826,2]
[388907952,1759488644999,-393.43532595,0.00023826,2]
[388907954,1759488645010,-1500.0,0.00023826,2]
[388907956,1759488645020,-774.12105848,0.00023826,2]
[388907958,1759488645030,-1500.0,0.00023826,2]
[388907961,1759488645043,-1500.0,0.00023826,2]
[388907963,1759488645053,-1492.9321868,0.00023826,2]
[388907965,1759488645062,-1500.0,0.00023826,2]
[388907967,1759488645072,-1500.0,0.00023826,2]
[388907969,1759488645083,-164.47794808,0.00023836,2]
[388907971,1759488645093,-500.0,0.00023836,2]
[388907973,1759488645103,-1500.0,0.00023846,2]
[388907975,1759488645113,-1500.0,0.00023846,2]
[388907977,1759488645123,-503.90719577,0.00023883,2]
[388907979,1759488645133,-501.34197176,0.00023883,2]
[388907981,1759488645143,-1500.0,0.00023883,2]
[388907983,1759488645154,-1500.0,0.00023883,2]
[388907985,1759488645164,-1500.0,0.00023883,2]
[388907987,1759488645175,-823.0,0.00023942,2]
[388907989,1759488645185,-170.77057561,0.00023976,2]
[388907991,1759488645195,-150.0,0.00023988,2]
[388907993,1759488645206,-160.0,0.00024,7]
[388907996,1759488645216,-18000.0,0.00024,15]
[388907997,1759488645227,-1015.0,0.00024,2]
[388907999,1759488645237,-11074.0,0.00024,2]
[388908001,1759488645247,-160.0,0.00024,7]
[388908004,1759488645258,-30045.79886919,0.00024,2]
[388908006,1759488645267,-400.0,0.00024,2]
[388908008,1759488645277,-3000.0,0.00024,2]
[388908010,1759488645287,-1041.66666667,0.00024,7]
[388908012,1759488645296,-234.04758945,0.00024,7]
[388908014,1759488645306,-234.04758945,0.00024,10]
[388908016,1759488645316,-1041.66666667,0.00024,10]
[388908018,1759488645325,-3000.0,0.0002401,2]
[388908020,1759488645335,-1000.0,0.00024011,2]
[388908022,1759488645344,-3000.0,0.0002402,2]
[388908024,1759488645353,-3000.0,0.0002403,2]
[388908026,1759488645363,-3000.0,0.0002404,2]
[388908028,1759488645372,-674.73541313,0.00024049,2]
[388908030,1759488645382,-3000.0,0.0002405,2]
[388908032,1759488645391,-1027.76352672,0.00024057,2]
[388908034,1759488645401,-3000.0,0.0002406,2]
[388908036,1759488645410,-1500.0,0.00024061,2]
[388908038,1759488645419,-1500.0,0.00024061,2]
[388908040,1759488645428,-1500.0,0.00024061,2]
[388908042,1759488645438,-586.89025683,0.00024061,2]
[388908044,1759488645447,-1500.0,0.00024061,2]
[388908046,1759488645457,-1256.96195993,0.00024061,2]
[388908048,1759488645469,-3000.0,0.0002407,2]
[388908050,1759488645480,-3000.0,0.0002408,2]
[388908052,1759488645490,-3000.0,0.0002409,2]
[388908055,1759488645500,-200.0,0.000241,7]
[388908056,1759488645510,-3000.0,0.000241,2]
[388908058,1759488645520,-500.0,0.0002411,2]
[388908060,1759488645529,-3000.0,0.0002411,2]
[388908062,1759488645539,-3000.0,0.0002412,2]
[388908065,1759488645549,-3000.0,0.0002413,2]
[388908067,1759488645559,-164.47794808,0.00024137,2]
[388908069,1759488645571,-3000.0,0.0002414,2]
[388908071,1759488645582,-3000.0,0.0002415,2]
[388908073,1759488645591,-1000.0,0.00024151,2]
[388908075,1759488645600,-1000.0,0.00024151,2]